bitfinex-derivatives/quotes_ETHF0:USTF0_20251204
["timestamp","ask_amount","ask_price","bid_price","bid_amount"]
[1764878136735,5.2695,3122.5,3122.4,3.2078]
[1764878137442,6.7002,3122.5,3122.4,3.2078]
[1764878138037,5.2695,3122.5,3122.4,3.2078]
[1764878139341,5.2695,3122.4,3122.3,0.004805]
[1764878139538,5.7989,3122.6,3122.5,2.4722]
[1764878139737,8.4773,3122.6,3122.5,4.3247]
[1764878140044,2.5911,3122.4,3122.3,5.135495]
[1764878140245,2.5911,3122.4,3122.3,2.637095]
[1764878140246,5.2695,3122.4,3122.3,2.637095]
[1764878140950,2.5911,3122.4,3122.3,5.135495]
[1764878141351,5.2695,3122.4,3122.3,5.135495]
[1764878141842,5.2695,3122.4,3122.3,0.164895]
[1764878142461,5.7989,3122.6,3122.5,6.8231]
[1764878142749,5.2695,3122.4,3122.3,0.164895]
[1764878143053,5.2695,3122.4,3122.3,2.637095]
[1764878143348,2.5911,3122.4,3122.3,5.135495]
[1764878143552,15.42941706,3122.8,3122.7,4.9706]
[1764878143743,12.83831706,3122.8,3122.7,5.13067]
[1764878144053,15.42941706,3122.8,3122.7,5.13067]
[1764878144254,18.10781706,3122.8,3122.7,5.13067]
[1764878144646,15.42941706,3122.8,3122.7,5.13067]
[1764878145757,12.83831706,3122.8,3122.7,5.13067]
[1764878148054,15.76161706,3122.8,3122.7,5.13067]
[1764878148359,12.83831706,3122.8,3122.7,5.13067]
[1764878148759,15.76161706,3122.8,3122.7,5.13067]
[1764878149362,12.83831706,3122.8,3122.7,5.13067]
[1764878151359,18.57861706,3122.8,3122.7,3.08347]
[1764878152054,18.57861706,3122.8,3122.7,0.16007]
[1764878155861,18.57861706,3122.8,3122.7,3.08347]
[1764878156653,18.57861706,3122.8,3122.7,0.16007]
[1764878157253,18.57861706,3122.8,3122.7,6.02037]
[1764878157468,18.57861706,3122.8,3122.7,3.08347]
[1764878157963,12.83831706,3122.8,3122.7,6.02037]
[1764878158163,15.76161706,3122.8,3122.7,6.02037]
[1764878158362,0.00231706,3122.8,3122.7,6.02037]
[1764878158855,2.92561706,3122.8,3122.7,6.02037]
[1764878159250,5.74261706,3122.8,3122.7,6.02037]
[1764878159454,2.92561706,3122.8,3122.7,6.02037]
[1764878160559,5.74261706,3122.8,3122.7,6.02037]
[1764878162355,5.74261706,3122.8,3122.7,0.16007]
[1764878162560,0.00231706,3122.8,3122.7,6.02037]
[1764878163757,5.6886,3122.4,3122.3,0.004805]
[1764878163960,16.79447384,3122.4,3121.7,5.94972]
[1764878164158,16.0318,3122.4,3121.8,0.16011]
[1764878164363,2.7751,3121.9,3121.8,5.94971]
[1764878164765,40.8,3122.3,3122.2,5.7896]
[1764878164958,12.824,3122.4,3122.3,5.7896]
[1764878165155,5.5404,3122.3,3122.2,0.16009]
[1764878165361,5.5404,3122.3,3122.2,5.94969]
[1764878165967,12.824,3122.4,3122.2,5.94969]
[1764878166166,40.8,3122.7,3122.3,5.7896]
[1764878166362,40.8,3122.7,3122.6,2.8228]
[1764878166564,0.00231706,3122.8,3122.7,5.94967]
[1764878167462,0.004805,3123.0,3122.9,5.94966]
[1764878167662,0.004805,3123.0,3122.9,9.15746]
[1764878168474,2.779905,3123.0,3122.9,9.15746]
[1764878168664,2.78315847,3123.0,3122.9,9.15746]
[1764878168866,5.54845847,3123.0,3122.9,0.16006]
[1764878170272,5.5404,3122.6,3122.5,7.6287]
[1764878170471,2.7751,3122.6,3122.5,10.5955]
[1764878170674,5.5404,3122.6,3122.5,10.5955]
[1764878171871,5.99095847,3123.0,3122.9,5.94966]
[1764878172071,0.00805847,3123.0,3122.9,9.15746]
[1764878172273,8.7482,3123.8,3123.7,2.9668]
[1764878172466,3.2078,3123.8,3123.7,5.94962]
[1764878172770,8.7482,3124.2,3124.1,2.8228]
[1764878172971,8.7482,3124.2,3123.8,0.16001]
[1764878173678,8.7510977,3124.2,3123.8,0.16407593]
[1764878173884,5.5404,3123.9,3123.8,2.98687593]
[1764878174372,5.5404,3123.9,3123.8,0.16407593]
[1764878174574,5.5404,3123.9,3123.8,0.00406593]
[1764878174973,5.5404,3123.9,3123.8,2.82686593]
[1764878175280,5.5404,3123.9,3123.8,0.00406593]
[1764878177081,5.5404,3123.8,3123.0,7.09584741]
[1764878177275,5.5404,3123.8,3123.1,0.16005]
[1764878177778,5.5404,3123.8,3123.2,0.16004]
[1764878178177,5.5404,3123.8,3123.2,0.16800925]
[1764878178475,40.8,3123.7,3123.2,0.16800925]
[1764878179382,2.7751,3123.3,3123.2,5.95760925]
[1764878179580,8.7482,3123.9,3123.8,5.7896]
[1764878179778,0.0028977,3124.2,3123.8,5.7896]
[1764878179779,0.0028977,3124.2,3123.8,5.94961]
[1764878179985,5.5432977,3124.2,3123.8,0.16001]
[1764878180177,2.7751,3123.9,3123.8,5.94961]
[1764878181082,5.5404,3123.9,3123.8,5.94961]
[1764878181271,5.5404,3123.9,3123.8,2.98281]
[1764878181477,5.5404,3123.9,3123.8,0.16001]
[1764878182071,8.7482,3123.9,3123.8,0.16001]
[1764878182480,8.7482,3123.9,3123.5,3.2078]
[1764878182481,5.5404,3123.6,3123.5,3.2078]
[1764878183285,2.7751,3123.4,3123.3,5.94964]
[1764878183674,5.5404,3123.4,3123.3,0.16004]
[1764878183986,3.2078,3123.9,3123.2,0.00796925]
[1764878183987,5.5404,3123.3,3123.2,0.00796925]
[1764878184880,12.815,3123.8,3123.2,5.79756925]
[1764878185078,5.5404,3123.3,3123.2,0.00796925]
[1764878185585,5.5404,3123.3,3123.2,2.83076925]
[1764878186285,5.5404,3123.3,3123.2,0.00796925]
[1764878190693,5.5404,3123.3,3123.2,5.79756925]
[1764878190884,5.5404,3123.3,3123.2,2.83076925]
[1764878191387,5.5404,3123.3,3123.2,0.00796925]
[1764878192383,5.5404,3123.3,3123.2,2.83076925]
[1764878192690,5.5404,3123.3,3123.2,0.00796925]
[1764878195290,5.4376,3122.7,3122.6,8.94307]
[1764878195686,5.4376,3122.7,3122.6,3.36787]
[1764878196393,5.4376,3122.7,3122.6,3.3714649]
[1764878199491,0.9058,3122.1,3122.0,0.1601]
[1764878199696,4.1136,3122.1,3122.0,1e-08]
[1764878199902,44.9136,3122.1,3122.0,1e-08]
[1764878200101,44.0078,3122.1,3122.0,7.05670001]
[1764878200294,44.0078,3122.1,3122.0,7.0600984]
[1764878200597,4.1136,3122.1,3122.0,1.4848984]
[1764878200798,4.1136,3122.1,3122.0,0.0033984]
[1764878201099,4.1136,3122.1,3122.0,0.1634984]
[1764878201595,4.1136,3122.1,3122.0,0.0033984]
[1764878202898,4.1136,3122.1,3122.0,1.4848984]
[1764878203103,4.1136,3122.1,3122.0,7.0600984]
[1764878203997,4.1136,3122.1,3122.0,4.1912984]
[1764878204192,4.1136,3122.1,3122.0,1.4848984]
[1764878204895,4.1136,3122.1,3122.0,4.1912984]
[1764878205198,3.9082,3122.1,3122.0,6.6812984]
[1764878205691,3.2078,3122.1,3122.0,6.8413984]
[1764878205999,0.004805,3122.4,3122.3,5.24009]
[1764878207699,3.2078,3122.9,3122.8,5.08]
[1764878207899,3.2078,3122.9,3122.8,5.24006]
[1764878208795,3.9082,3122.9,3122.8,5.24006]
[1764878209302,4.6086,3122.9,3122.8,2.75006]
[1764878209598,3.9082,3122.9,3122.8,5.24006]
[1764878210099,1.4008,3122.6,3122.5,1.605505]
[1764878211799,1.4008,3122.6,3122.5,0.004805]
[1764878212604,1.4008,3122.1,3122.0,0.0033984]
[1764878212902,4.6086,3122.1,3122.0,0.0033984]
[1764878213699,1.4008,3121.8,3121.7,0.16012]
[1764878213896,1.4008,3121.6,3121.5,1.5981]
[1764878214595,1.4008,3121.6,3121.5,4.1881]
[1764878214796,1.40456527,3121.6,3121.5,4.19097125]
[1764878215793,1.40456527,3121.6,3121.5,1.60097125]
[1764878220106,0.00376527,3121.6,3121.5,6.68097125]
[1764878220306,0.00376527,3121.6,3121.5,6.84110125]
[1764878220507,3.2078,3122.4,3122.3,5.24009]
[1764878220702,1.4084,3122.1,3122.0,1.6007]
[1764878221002,0.7042,3122.1,3122.0,6.6807]
[1764878221402,0.00287481,3122.1,3122.0,6.6807]
[1764878221603,3.2078,3122.8,3122.5,1.6007]
[1764878221805,3.2078,3122.8,3122.7,5.08]
[1764878222210,3.2078,3122.8,3122.7,5.24007]
[1764878222513,3.21144033,3122.8,3122.7,5.24007]
[1764878224004,0.004805,3123.2,3122.9,0.16006]
[1764878224207,0.2194,3123.6,3123.5,3.8394]
[1764878224508,41.2388,3123.6,3123.5,1.4216]
[1764878225100,41.24149933,3123.6,3123.5,1.4216]
[1764878225611,41.02209933,3123.6,3123.5,6.3543]
[1764878226114,0.22209933,3123.6,3123.5,6.3543]
[1764878226314,0.004805,3123.9,3123.8,4.9327]
[1764878227308,0.00891127,3123.9,3123.8,4.93555715]
[1764878228112,0.44771127,3123.9,3123.8,0.00285715]
[1764878228507,0.00891127,3123.9,3123.8,4.93555715]
[1764878229112,0.44771127,3123.9,3123.8,0.00285715]
[1764878229306,0.44771127,3123.9,3123.8,2.42065715]
[1764878229710,41.24771127,3123.9,3123.8,2.42065715]
[1764878230009,41.24771127,3123.9,3123.8,0.00285715]
[1764878231314,0.4388,3123.3,3123.0,4.6294]
[1764878231510,0.4359,3123.3,3123.2,2.422605]
[1764878231709,0.4359,3123.3,3123.2,0.004805]
[1764878232307,0.4359,3123.3,3123.2,0.00756937]
[1764878232714,0.2165,3122.6,3122.5,7.2263]
[1764878232912,0.2165,3122.6,3122.5,4.0185]
[1764878233112,0.2165,3122.6,3122.5,6.5334]
[1764878233921,0.2165,3122.6,3122.5,1.60322791]
[1764878233922,0.433,3122.6,3122.5,1.60322791]
[1764878234506,0.2165,3122.6,3122.5,6.53592791]
[1764878234712,3.2078,3122.9,3122.5,6.53592791]
[1764878234913,0.2165,3122.6,3122.5,4.02102791]
[1764878235107,0.433,3122.6,3122.5,4.02102791]
[1764878235309,41.233,3122.6,3122.5,4.02102791]
[1764878235711,40.8,3122.6,3122.5,6.53592791]
[1764878236317,3.2078,3123.3,3122.8,4.9327]
[1764878236716,0.2165,3122.9,3122.8,4.9327]
[1764878236915,41.0165,3122.9,3122.8,4.9327]
[1764878237719,0.2165,3122.6,3122.5,4.18110791]
[1764878238420,44.0078,3122.9,3122.5,6.69600791]
[1764878238819,0.433,3122.6,3122.5,0.00252791]
[1764878240039,0.433,3122.1,3121.9,0.1601]
[1764878240525,0.433,3122.1,3122.0,4.0185]
[1764878240826,0.2165,3122.1,3122.0,4.0185]
[1764878241026,0.2165,3122.1,3122.0,4.02148272]
[1764878241432,0.433,3122.1,3122.0,4.02148272]
[1764878241617,3.4243,3122.4,3122.3,2.4178]
[1764878241929,3.6408,3122.4,3122.3,2.4178]
[1764878242327,0.2165,3122.2,3122.1,2.5779]
[1764878242530,0.2165,3122.2,3122.1,5.0928]
[1764878242925,0.433,3122.2,3122.1,2.5779]
[1764878243228,0.433,3122.2,3122.1,0.1601]
[1764878243419,0.433,3122.2,3122.1,2.5779]
[1764878243622,0.2165,3122.2,3122.1,2.5779]
[1764878244128,0.2165,3122.2,3122.1,5.0928]
[1764878244333,3.2078,3122.3,3122.2,4.9327]
[1764878245322,3.6408,3122.3,3122.2,2.4178]
[1764878245526,3.4243,3122.3,3122.2,2.4178]
[1764878245726,3.4243,3122.3,3122.2,4.9327]
[1764878247121,3.4243,3122.3,3122.2,5.09279]
[1764878247518,12.801,3122.7,3122.2,5.09279]
[1764878247519,16.2253,3122.7,3122.6,4.9327]
[1764878247719,3.2078,3123.5,3123.0,6.3543]
[1764878247924,6.245,3123.4,3123.0,6.3543]
[1764878248328,40.8,3123.3,3123.2,2.4178]
[1764878248930,40.8,3123.3,3123.2,4.9327]
[1764878253535,6.245,3123.4,3123.3,4.9327]
[1764878253735,6.4615,3123.4,3123.3,4.9327]
[1764878255236,6.678,3123.4,3123.3,4.9327]
[1764878257037,6.4615,3123.4,3123.3,4.9327]
[1764878261238,6.245,3123.4,3123.3,4.9327]
[1764878263539,8.9846225,3123.4,3123.0,3.6868]
[1764878263840,6.245,3123.4,3123.0,5.8275]
[1764878264841,6.245,3123.4,3123.3,2.2652]
[1764878265039,6.245,3123.4,3123.0,3.6868]
[1764878265443,6.245,3123.4,3123.0,5.8275]
[1764878265742,6.245,3123.4,3122.8,0.16006]
[1764878265934,6.245,3123.4,3122.8,2.42526]
[1764878266133,6.245,3123.4,3122.8,2.2652]
[1764878266336,2.46134128,3123.3,3122.5,3.84688]
[1764878267740,2.46134128,3123.3,3122.0,7.07668272]
[1764878267741,3.2078,3122.6,3122.0,7.07668272]
[1764878267940,12.791,3122.5,3122.0,7.07668272]
[1764878268541,15.25234128,3122.5,3122.0,4.81148272]
[1764878268741,15.25234128,3122.5,3122.0,3.21078272]
[1764878268942,40.8,3122.4,3122.0,0.00298272]
[1764878269440,5.66914128,3122.1,3122.0,0.00298272]
[1764878269642,18.46014128,3122.1,3121.5,3.6868]
[1764878269839,3.2078,3121.7,3121.5,3.6868]
[1764878270048,52.034,3121.6,3121.5,3.6868]
[1764878270242,52.034,3121.6,3121.5,5.8275]
[1764878270645,52.03805769,3121.6,3121.5,5.83058739]
[1764878270842,52.03805769,3121.6,3121.5,3.68988739]
[1764878271046,52.03805769,3121.6,3121.5,5.83058739]
[1764878274343,3.212605,3122.1,3122.0,5.7075]
[1764878274540,5.578605,3122.1,3122.0,5.7075]
[1764878274845,7.835305,3122.1,3122.0,5.7075]
[1764878275047,5.578605,3122.1,3122.0,5.7075]
[1764878275352,5.58263562,3122.1,3122.0,5.7075]
[1764878275550,7.83933562,3122.1,3122.0,5.7075]
[1764878276047,7.83933562,3122.1,3122.0,4.4059]
[1764878276949,5.58263562,3122.1,3122.0,5.7075]
[1764878278039,3.21663562,3122.1,3122.0,5.7075]
[1764878278447,3.21663562,3122.1,3122.0,5.8676]
[1764878281445,4.6227,3121.8,3121.5,0.00308739]
[1764878281753,4.6227,3121.6,3121.5,0.00308739]
[1764878285858,7.71163562,3122.1,3122.0,4.414]
[1764878286358,7.71163562,3122.1,3121.6,0.16012]
[1764878286555,7.71163562,3122.1,3122.0,2.274]
[1764878286758,7.71163562,3122.1,3121.6,0.16012]
[1764878286958,7.71163562,3122.1,3122.0,4.414]
[1764878287157,5.57323562,3122.1,3122.0,6.0131]
[1764878287560,7.71163562,3122.1,3122.0,4.5741]
[1764878287754,7.71163562,3122.1,3122.0,2.4341]
[1764878288956,3.21663562,3122.1,3122.0,6.0131]
[1764878289155,5.57323562,3122.1,3122.0,6.0131]
[1764878289764,7.71163562,3122.1,3122.0,2.4341]
[1764878290065,7.71163562,3122.1,3122.0,0.1601]
[1764878290458,7.71163562,3122.1,3122.0,2.4341]
[1764878290659,7.71163562,3122.1,3122.0,4.5741]
[1764878291566,0.00883562,3122.1,3122.0,6.0131]
[1764878292059,2.36543562,3122.1,3122.0,6.0131]
[1764878292257,4.50383562,3122.1,3122.0,6.0131]
[1764878292461,2.36543562,3122.1,3122.0,6.0131]
[1764878293463,4.50383562,3122.1,3122.0,6.0131]
[1764878294462,0.00883562,3122.1,3122.0,6.0131]
[1764878295261,2.36543562,3122.1,3122.0,6.0131]
[1764878295966,4.50383562,3122.1,3122.0,6.0131]
[1764878297964,4.50383562,3122.1,3122.0,4.5741]
[1764878298162,4.50383562,3122.1,3122.0,0.1601]
[1764878298469,2.36543562,3122.1,3122.0,4.5741]
[1764878298762,4.50383562,3122.1,3122.0,4.5741]
[1764878299662,2.36543562,3122.1,3122.0,6.0131]
[1764878299858,0.00883562,3122.1,3122.0,6.0131]
[1764878300369,2.36543562,3122.1,3122.0,6.0131]
[1764878301067,4.50383562,3122.1,3122.0,6.0131]
[1764878301266,2.36543562,3122.1,3122.0,6.0131]
[1764878301762,0.00883562,3122.1,3122.0,6.0131]
[1764878301968,15.1446,3122.7,3122.6,4.414]
[1764878302571,15.1446,3122.7,3122.6,4.57407]
[1764878302967,15.14868603,3122.7,3122.6,4.57407]
[1764878303468,12.79208603,3122.7,3122.6,4.57407]
[1764878303870,15.14868603,3122.7,3122.6,4.57407]
[1764878304062,12.79208603,3122.7,3122.6,4.57407]
[1764878304873,17.28708603,3122.7,3122.6,0.16007]
[1764878306269,17.28708603,3122.7,3122.6,2.43407]
[1764878306667,3.2078,3123.8,3123.5,0.16002]
[1764878306868,4.495,3123.6,3123.5,4.57402]
[1764878307264,45.295,3123.6,3123.5,4.57402]
[1764878307658,45.29839967,3123.6,3123.5,4.57402]
[1764878308071,45.29839967,3123.6,3123.5,2.43402]
[1764878308273,45.29839967,3123.6,3123.5,0.16002]
[1764878308766,45.29839967,3123.6,3123.5,2.43402]
[1764878308971,45.29839967,3123.6,3123.5,4.57402]
[1764878310771,45.29839967,3123.6,3123.5,2.43402]
[1764878310971,45.29839967,3123.6,3123.5,0.16002]
[1764878311167,45.29839967,3123.6,3123.5,2.43402]
[1764878311664,45.29839967,3123.6,3123.5,4.57402]
[1764878313777,45.29839967,3123.6,3123.5,2.43402]
[1764878314975,45.29839967,3123.6,3123.5,0.16002]
[1764878315472,45.29839967,3123.6,3123.5,2.57182]
[1764878315678,45.29839967,3123.6,3123.5,0.16002]
[1764878315878,45.29839967,3123.6,3123.5,2.57182]
[1764878316374,5.1222,3123.3,3123.2,3.07814385]
[1764878316573,5.1222,3122.9,3122.8,0.16006]
[1764878316772,17.8982,3122.9,3122.8,4.98646]
[1764878316974,17.8982,3122.9,3122.8,0.16006]
[1764878317171,5.1222,3122.4,3122.3,3.212605]
[1764878320984,5.1222,3121.6,3121.5,0.00308739]
[1764878321192,5.1222,3120.9,3120.8,4.8264]
[1764878321984,5.1222,3120.6,3120.5,0.004805]
[1764878322181,8.33258613,3120.6,3120.5,6.24066232]
[1764878322896,3.21038613,3120.6,3120.5,6.24066232]
[1764878323096,8.39348613,3120.6,3120.5,6.24066232]
[1764878323298,5.1831,3120.1,3120.0,4.0404]
[1764878323496,5.1831,3120.1,3119.9,3.2078]
[1764878323800,5.1831,3120.0,3119.9,3.2078]
[1764878324101,2.5741,3120.1,3120.0,6.8897]
[1764878324394,5.1831,3120.1,3120.0,0.00320486]
[1764878325003,2.5741,3120.1,3120.0,6.89290486]
[1764878325195,15.98538613,3120.6,3120.0,6.89290486]
[1764878325500,2.5741,3120.1,3120.0,6.89290486]
[1764878325894,5.1831,3120.1,3120.0,6.89290486]
[1764878326702,5.1831,3120.1,3120.0,0.00320486]
[1764878327199,5.1831,3119.6,3119.5,6.6425]
[1764878327397,5.1831,3119.6,3119.5,4.0404]
[1764878327906,2.5741,3119.4,3119.3,8.60424]
[1764878328096,5.1831,3119.4,3119.3,6.00214]
[1764878328297,5.1831,3119.4,3119.3,6.00468509]
[1764878328497,5.1831,3119.4,3119.3,3.37058509]
[1764878328800,2.5741,3118.9,3118.8,9.26802873]
[1764878329196,5.1831,3118.9,3118.8,5.8419]
[1764878329401,2.5741,3118.9,3118.8,8.444]
[1764878329899,0.004805,3119.2,3118.8,5.81333552]
[1764878330092,5.187905,3119.2,3118.8,3.21123552]
[1764878330498,0.004805,3119.2,3118.8,8.44743552]
[1764878330801,0.004805,3119.2,3119.1,5.2362]
[1764878331001,0.004805,3119.2,3119.1,5.39645]
[1764878331299,3.2078,3119.8,3119.7,5.39642]
[1764878331503,0.00258613,3120.6,3119.7,5.39642]
[1764878331504,5.1831,3120.2,3120.0,1.6535]
[1764878331701,3.2078,3120.3,3120.0,1.6535]
[1764878331901,2.5741,3120.1,3120.0,4.2876]
[1764878332206,5.1831,3120.1,3120.0,4.2876]
[1764878332399,8.3909,3120.3,3120.2,2.6341]
[1764878332597,2.5741,3120.1,3120.0,4.2876]
[1764878332800,2.5741,3120.1,3120.0,6.8897]
[1764878333497,5.7819,3120.3,3120.2,5.2362]
[1764878334005,2.5741,3120.1,3120.0,6.8897]
[1764878334601,3.2078,3120.3,3120.0,6.8897]
[1764878334602,3.2078,3120.3,3120.2,5.2362]
[1764878335111,5.7819,3120.3,3120.2,5.2362]
[1764878335415,8.3909,3120.3,3120.2,2.6341]
[1764878335611,2.5741,3120.1,3120.0,7.04991]
[1764878336015,5.1831,3120.1,3120.0,4.44781]
[1764878336512,2.5741,3120.1,3120.0,7.04991]
[1764878336913,5.1831,3120.1,3120.0,7.04991]
[1764878337511,5.1831,3120.1,3120.0,4.44781]
[1764878338020,5.1831,3119.8,3119.7,0.004805]
[1764878341018,2.5741,3119.8,3119.7,5.241005]
[1764878341318,5.1831,3119.8,3119.7,0.004805]
[1764878342019,5.1831,3119.6,3118.8,3.21123552]
[1764878342222,5.1831,3119.1,3119.0,4.2876]
[1764878342516,5.1831,3119.1,3119.0,6.8897]
[1764878342714,2.5741,3119.2,3119.1,2.79435]
[1764878343020,40.8,3119.4,3119.3,5.2362]
[1764878343811,3.2078,3119.5,3119.4,5.42854]
[1764878344116,8.512,3119.5,3119.4,5.42854]
[1764878344317,5.7728,3119.5,3119.4,5.42854]
[1764878344621,3.2078,3119.5,3119.4,5.42854]
[1764878345017,3.2078,3119.9,3119.8,5.2683]
[1764878346223,3.2078,3119.9,3119.8,5.42852]
[1764878347918,12.78,3120.0,3119.9,5.2683]
[1764878348109,12.78,3120.0,3119.9,5.42851]
[1764878349216,18.0842,3120.0,3119.9,5.42851]
[1764878350016,15.345,3120.0,3119.9,5.42851]
[1764878351717,12.82398692,3120.0,3119.9,5.42851]
[1764878352123,12.96483386,3120.0,3119.9,5.42851]
[1764878353618,0.18483386,3120.0,3119.9,5.42851]
[1764878354328,6.3798,3120.7,3120.3,2.68109]
[1764878354329,2.569805,3120.4,3120.3,2.68109]
[1764878354520,0.004805,3120.4,3120.3,5.42849]
[1764878355525,2.569805,3120.4,3120.3,5.42849]
[1764878357526,5.309005,3120.4,3120.3,2.68109]
[1764878357717,5.309005,3120.4,3120.3,0.16019]
[1764878357917,5.309005,3120.4,3120.3,2.68109]
[1764878358119,0.004805,3120.4,3120.3,5.42849]
[1764878358916,0.02229056,3120.4,3120.3,5.42849]
[1764878361728,0.03213071,3120.4,3120.3,5.42849]
[1764878362726,3.2078,3120.7,3120.5,6.92998]
[1764878362923,2.565,3121.3,3121.2,5.42844]
[1764878363128,3.2078,3121.5,3121.4,5.42843]
[1764878363330,5.7728,3121.5,3121.4,5.42843]
[1764878363633,5.7728,3121.5,3120.9,0.16016]
[1764878363634,5.3042,3121.1,3120.9,0.16016]
[1764878363840,5.3042,3121.0,3120.9,0.16406724]
[1764878364131,5.3042,3121.0,3120.9,2.68496724]
[1764878364333,2.565,3121.0,3120.9,5.43236724]
[1764878364628,5.3042,3121.0,3120.9,5.43236724]
[1764878365126,6.3645,3121.0,3120.9,0.00390724]
[1764878365331,7.13927446,3121.0,3120.9,0.00390724]
[1764878366228,5.3042,3121.0,3120.9,2.52480724]
[1764878367729,5.3042,3121.0,3120.9,0.00390724]
[1764878368724,5.3042,3121.0,3120.9,2.52480724]
[1764878369928,6.3645,3121.0,3120.9,0.00390724]
[1764878376226,5.0549,3120.2,3119.6,5.49774741]
[1764878376433,5.0549,3119.7,3119.6,3.2078]
[1764878376632,5.0549,3119.7,3119.6,5.69]
[1764878377034,5.0549,3119.7,3119.6,2.4822]
[1764878377338,5.0549,3119.3,3119.2,5.69]
[1764878377738,5.0549,3119.3,3119.2,0.0030654]
[1764878378432,8.2627,3119.3,3119.2,0.0030654]
[1764878379034,8.2627,3119.3,3119.2,2.4852654]
[1764878379842,15.9778,3119.5,3119.4,4.8168]
[1764878380142,21.0327,3119.5,3119.4,4.8168]
[1764878380538,8.2627,3119.5,3119.4,4.8168]
[1764878380839,3.2078,3119.5,3119.4,4.8168]
[1764878381339,5.768,3119.5,3119.4,4.8168]
[1764878381540,2.5602,3119.5,3119.4,4.8168]
[1764878382242,5.0549,3119.5,3119.4,4.97704]
[1764878382442,5.0549,3119.5,3119.4,2.64244]
[1764878382640,8.2627,3119.5,3119.4,2.64244]
[1764878383341,8.2627,3119.5,3118.8,3.2078]
[1764878383342,4.2922,3118.9,3118.8,2.39957]
[1764878383638,4.2922,3118.9,3118.8,4.52447]
[1764878383836,20.27,3119.1,3119.0,5.6682]
[1764878384036,18.0821,3119.1,3119.0,5.6682]
[1764878384438,20.27286772,3119.1,3119.0,5.67157966]
[1764878384846,3.21066772,3119.1,3119.0,5.83183966]
[1764878385042,5.31496772,3119.1,3119.0,5.83183966]
[1764878385344,3.21066772,3119.1,3119.0,5.83183966]
[1764878389755,7.50286772,3119.1,3119.0,5.83183966]
[1764878390348,7.50286772,3119.1,3119.0,0.16363966]
[1764878393051,7.50286772,3119.1,3119.0,3.70693966]
[1764878393546,7.50286772,3119.1,3119.0,0.16363966]
[1764878393952,5.31496772,3119.1,3119.0,5.83183966]
[1764878394153,3.21066772,3119.1,3119.0,5.83183966]
[1764878395645,5.31496772,3119.1,3119.0,5.83183966]
[1764878395847,3.21066772,3119.1,3119.0,5.83183966]
[1764878396253,5.31496772,3119.1,3119.0,5.83183966]
[1764878398650,7.50286772,3119.1,3119.0,5.83183966]
[1764878398956,3.21066772,3119.1,3119.0,5.83183966]
[1764878399757,7.50286772,3119.1,3119.0,5.83183966]
[1764878400151,5.31496772,3119.1,3119.0,5.83183966]
[1764878400452,7.50286772,3119.1,3119.0,0.00337966]
[1764878400655,3.21066772,3119.1,3118.5,5.86078]
[1764878400951,3.2078,3118.6,3118.5,5.6682]
[1764878401148,3.2078,3118.6,3118.5,5.82848]
[1764878401357,7.5,3118.6,3118.5,0.16028]
[1764878401549,3.2078,3118.6,3118.5,5.83088604]
[1764878402159,7.5,3119.0,3118.9,2.28516]
[1764878402353,4.2922,3118.6,3118.5,0.00240604]
[1764878402651,3.2078,3118.6,3118.5,5.83088604]
[1764878403059,5.3121,3118.6,3118.5,5.83088604]
[1764878403351,16.383,3119.0,3118.9,2.1249]
[1764878403658,16.383,3119.0,3118.7,4.52447]
[1764878403659,2.1043,3118.8,3118.7,4.52447]
[1764878404056,4.2922,3118.8,3118.7,4.52447]
[1764878404555,16.394,3119.0,3118.9,4.3067]
[1764878404752,3.2078,3119.6,3119.5,5.5714]
[1764878404960,3.2078,3119.6,3119.5,5.73163]
[1764878405155,3.212605,3120.0,3119.9,4.46691]
[1764878405757,5.36879959,3120.0,3119.9,4.46691]
[1764878406347,4.3032,3119.5,3119.4,0.16024]
[1764878406549,7.511,3119.5,3119.4,2.25244]
[1764878406751,5.3603,3119.5,3119.4,4.46694]
[1764878407361,7.511,3119.5,3119.4,2.25244]
[1764878407748,0.00849959,3120.0,3119.9,4.46691]
[1764878407955,7.511,3120.8,3120.7,2.0922]
[1764878408158,2.1525,3120.6,3120.5,4.46688]
[1764878408457,5.4854,3120.5,3120.4,3.2078]
[1764878409158,46.28945182,3120.5,3120.4,3.21151762]
[1764878409861,4.3032,3119.8,3119.4,0.16024]
[1764878410362,2.1525,3119.5,3119.4,4.46694]
[1764878410564,4.3032,3119.3,3119.2,3.2078]
[1764878410764,4.3032,3119.3,3119.2,5.30240697]
[1764878410955,3.2078,3119.6,3119.2,7.51690697]
[1764878411558,4.39,3120.0,3119.5,5.5714]
[1764878412066,2.1525,3119.6,3119.5,5.5714]
[1764878413064,2.1525,3119.6,3119.5,4.3067]
[1764878413262,2.1525,3119.6,3119.4,0.16024]
[1764878413263,4.3032,3119.5,3119.4,0.16024]
[1764878414162,5.4854,3119.5,3119.4,0.16024]
[1764878414463,2.1525,3119.5,3119.4,4.46694]
[1764878414654,4.3032,3119.5,3119.4,2.25244]
[1764878414851,4.3032,3119.5,3119.4,0.16024]
[1764878415061,3.2078,3119.6,3119.5,0.16023]
[1764878415262,3.2078,3120.0,3119.9,4.46691]
[1764878415560,0.00405182,3120.5,3120.3,0.16019]
[1764878415754,4.3032,3120.4,3120.3,0.16019]
[1764878415956,7.511,3120.4,3120.3,0.16019]
[1764878416151,7.511,3120.4,3119.5,1.2647]
[1764878416558,7.511,3120.4,3119.7,0.16022]
[1764878417869,7.511,3120.4,3119.8,0.16022]
[1764878418067,3.2078,3120.4,3120.3,4.3067]
[1764878418269,7.511,3120.4,3120.3,2.0922]
[1764878418561,7.511,3120.4,3120.3,4.3067]
[1764878418958,7.511,3120.4,3120.3,2.0922]
[1764878419168,5.3603,3120.4,3120.3,4.46689]